bitfinex-derivatives/quotes_BNBF0:USTF0_20250406
["timestamp","ask_amount","ask_price","bid_price","bid_amount"]
[1743898917042,1.383,593.58,593.05,1.25898521]
[1743898917246,1.383,593.58,593.06,0.29348089]
[1743898917846,1.383,593.58,593.05,1.25898521]
[1743898918047,1.383,593.58,593.07,0.2934805]
[1743898918341,1.383,593.58,593.08,0.2934805]
[1743898918543,1.383,593.58,593.09,0.29348041]
[1743898918744,1.383,593.58,593.06,0.29348041]
[1743898918942,1.383,593.58,593.07,0.29348041]
[1743898919145,1.383,593.58,593.06,0.29348041]
[1743898919348,1.383,593.58,593.07,0.29348041]
[1743898920743,1.383,593.58,593.06,1.25898521]
[1743898920948,1.383,593.58,593.07,1.55248505]
[1743898921145,1.383,593.58,593.08,0.29349984]
[1743898922148,1.383,593.58,593.07,1.25898521]
[1743898923446,1.383,593.58,593.03,1.25898521]
[1743898925448,1.383,593.58,592.86,0.33734777]
[1743898925654,1.383,593.58,592.87,0.29379403]
[1743898927854,1.383,593.58,592.86,0.33734777]
[1743898928049,1.383,593.58,592.87,0.29378183]
[1743898932455,1.383,593.58,592.86,0.33734777]
[1743898932652,1.383,593.58,592.87,0.29374502]
[1743898933157,1.383,593.58,592.86,0.33734777]
[1743898933353,1.383,593.58,592.88,0.29373754]
[1743898933553,1.383,593.58,592.89,0.29373754]
[1743898933857,1.383,593.58,592.9,0.29373754]
[1743898934051,1.383,593.58,592.87,0.29373754]
[1743898934255,1.383,593.58,592.86,0.33734777]
[1743898934556,1.383,593.58,592.87,0.29373854]
[1743898939060,1.383,593.58,592.87,1.55272375]
[1743898939361,1.383,593.58,592.88,0.29373854]
[1743898940860,1.383,593.58,592.89,0.29373854]
[1743898941059,1.383,593.58,592.87,0.29373854]
[1743898941261,1.383,593.58,592.88,0.29373854]
[1743898941560,1.383,593.58,592.89,0.29373854]
[1743898941759,1.383,593.58,592.87,0.29373854]
[1743898941960,1.383,593.58,592.88,0.29373854]
[1743898942159,1.383,593.58,592.87,0.29373854]
[1743898942356,1.383,593.58,592.88,0.29373854]
[1743898942562,1.383,593.58,592.87,0.29373854]
[1743898942762,1.383,593.58,592.86,0.33734777]
[1743898942964,1.383,593.58,592.88,0.29365507]
[1743898943162,1.383,593.58,592.89,0.29365507]
[1743898943459,1.383,593.58,592.86,0.33734777]
[1743898943657,1.383,593.58,592.87,0.29364757]
[1743898946365,1.383,593.58,592.88,0.29356682]
[1743898946565,1.383,593.58,592.87,0.29356682]
[1743898946864,1.383,593.58,592.88,0.29356682]
[1743898947064,1.383,593.58,592.87,0.29356682]
[1743898947366,1.383,593.58,592.88,0.29356682]
[1743898947560,1.383,593.58,592.87,0.29356682]
[1743898947865,1.383,593.58,592.9,1.25898521]
[1743898948061,1.383,593.58,592.91,0.29350681]
[1743898948662,1.383,593.58,592.9,1.25898521]
[1743898948966,1.383,593.58,592.91,0.2935053]
[1743898949868,1.383,593.58,592.98,1.25898521]
[1743898950068,1.383,593.58,592.99,0.2935053]
[1743898951463,1.383,593.58,592.98,1.25898521]
[1743898951667,1.383,593.58,592.99,0.29343647]
[1743898952462,1.383,593.58,592.98,0.29343647]
[1743898952665,1.383,593.58,592.99,0.29343647]
[1743898952969,1.383,593.58,593.0,0.29343647]
[1743898953266,1.383,593.58,593.01,0.29343647]
[1743898953466,1.383,593.58,592.98,0.29343647]
[1743898954166,1.383,593.58,592.95,0.29343647]
[1743898956869,1.383,593.58,592.88,0.29343647]
[1743898957067,1.383,593.58,592.89,0.29343647]
[1743898957272,1.383,593.58,592.88,0.29343647]
[1743898957473,1.383,593.58,592.89,0.29343647]
[1743898957672,1.383,593.58,592.88,0.29343647]
[1743898959276,1.383,593.58,592.89,1.25898521]
[1743898959476,1.383,593.58,592.9,0.29343647]
[1743898964078,1.383,593.58,592.89,1.25898521]
[1743898964280,1.383,593.58,592.93,1.25898521]
[1743898964576,1.383,593.58,592.94,0.2935235]
[1743898966585,1.383,593.58,592.91,0.2935235]
[1743898966884,1.383,593.58,592.9,1.25898521]
[1743898967078,1.383,593.58,592.91,0.29351314]
[1743898968786,1.383,593.58,592.91,1.55249835]
[1743898968985,1.383,593.58,592.92,0.29351314]
[1743898970386,1.383,593.58,592.91,1.25898521]
[1743898970586,1.383,593.58,592.93,0.29342444]
[1743898970789,1.383,593.58,592.94,0.29342444]
[1743898971086,1.383,593.58,592.95,1.55240965]
[1743898971287,1.383,593.58,592.96,0.29342444]
[1743898973884,1.383,593.58,592.97,0.29342444]
[1743898974188,1.383,593.58,592.98,0.29342444]
[1743898974388,1.383,593.58,592.89,0.29342444]
[1743898974589,1.383,593.58,592.9,0.29342444]
[1743898974790,1.383,593.58,592.89,0.29342444]
[1743898974988,1.383,593.58,592.9,1.55234875]
[1743898975188,1.383,593.58,592.91,0.29336354]
[1743898978895,1.383,593.58,592.9,1.25898521]
[1743898979193,1.383,593.58,592.91,0.29337569]
[1743898979595,1.383,593.58,592.9,1.25898521]
[1743898979791,1.383,593.58,592.92,0.29338237]
[1743898979998,1.383,593.58,592.93,0.29338237]
[1743898980196,1.383,593.58,592.91,0.29338237]
[1743898980493,1.383,593.58,592.92,0.29338237]
[1743898980695,1.383,593.58,592.89,0.29338237]
[1743898982398,1.383,593.58,592.89,1.55236758]
[1743898982598,1.383,593.58,592.9,0.29338237]
[1743898983598,1.383,593.58,592.89,1.25898521]
[1743898983799,1.383,593.58,592.9,0.29328964]
[1743898985000,1.383,593.58,592.97,1.25898521]
[1743898985199,1.383,593.58,592.98,0.29328964]
[1743898985397,1.383,593.58,592.97,1.25898521]
[1743898985599,1.383,593.58,592.98,0.29327847]
[1743898987104,1.383,593.58,592.97,1.25898521]
[1743898987399,1.383,593.58,593.02,1.25898521]
[1743898987604,1.383,593.58,593.03,0.29327089]
[1743898989201,1.383,593.58,593.03,1.5522561]
[1743898989401,1.383,593.58,593.04,0.29327089]
[1743898991100,1.383,593.58,593.06,1.25898521]
[1743898991306,1.383,593.58,593.07,0.29327089]
[1743898993004,1.383,593.58,593.07,1.5522561]
[1743898993207,1.383,593.58,593.08,0.29327089]
[1743898996107,1.383,593.58,593.09,0.29327089]
[1743898996305,1.383,593.58,592.98,0.29327089]
[1743898996503,1.383,593.58,592.99,0.29327089]
[1743898996704,1.383,593.58,593.0,0.29327089]
[1743898996908,1.383,593.58,592.98,0.29327089]
[1743898997107,1.383,593.58,592.99,0.29327089]
[1743898997304,1.383,593.58,592.98,0.29327089]
[1743898998710,1.383,593.58,592.95,0.29327089]
[1743898998910,1.383,593.58,592.96,0.29327089]
[1743898999213,1.383,593.58,592.97,0.29327089]
[1743898999413,1.383,593.58,592.95,0.29327089]
[1743899000814,1.383,593.58,592.94,1.25898521]
[1743899001013,1.383,593.58,592.95,0.29311248]
[1743899001711,1.383,593.58,592.96,0.29311248]
[1743899001916,1.383,593.58,592.92,0.29311248]
[1743899004118,1.383,593.58,592.91,1.25898521]
[1743899004319,1.383,593.58,592.93,0.29308555]
[1743899004619,1.383,593.58,592.94,0.29308555]
[1743899004919,1.383,593.58,592.97,1.25898521]
[1743899005112,1.383,593.58,592.98,0.29308555]
[1743899005919,1.383,593.58,592.97,1.25898521]
[1743899006118,1.383,593.58,592.98,0.29312351]
[1743899007420,1.383,593.58,592.94,0.29312351]
[1743899007619,1.383,593.58,592.95,0.29310695]
[1743899007818,1.383,593.58,592.96,0.29310695]
[1743899008118,1.383,593.58,592.97,0.29310695]
[1743899008316,1.383,593.58,592.94,0.29310695]
[1743899008516,1.383,593.58,592.95,0.29310695]
[1743899008717,1.383,593.58,592.94,0.29310695]
[1743899008915,1.383,593.58,592.95,0.29310695]
[1743899009116,1.383,593.58,592.93,1.25898521]
[1743899009319,1.383,593.58,592.96,0.29310523]
[1743899009520,1.383,593.58,592.97,0.29310523]
[1743899012420,1.383,593.58,592.98,1.25898521]
[1743899012622,1.383,593.58,592.99,0.29311202]
[1743899013720,1.383,593.58,592.98,1.25898521]
[1743899013921,1.383,593.58,592.99,0.29310422]
[1743899014918,1.383,593.58,592.99,1.55208943]
[1743899015222,1.383,593.58,593.0,0.29310422]
[1743899016018,1.383,593.58,592.99,1.25898521]
[1743899016224,1.383,593.58,593.0,0.29307602]
[1743899017024,1.383,593.58,593.01,0.29307602]
[1743899017224,1.383,593.58,592.93,0.29307602]
[1743899017527,1.383,593.58,592.92,1.25898521]
[1743899017721,1.383,593.58,592.93,0.29306078]
[1743899019528,1.383,593.58,592.94,1.25898521]
[1743899019727,1.383,593.58,592.95,0.29306078]
[1743899021031,1.383,593.58,592.94,1.25898521]
[1743899021231,1.383,593.58,592.95,0.29310832]
[1743899021929,1.383,593.58,592.96,0.29310832]
[1743899022130,1.383,593.58,592.97,0.29310832]
[1743899022330,1.383,593.58,592.92,1.25898521]
[1743899022331,1.383,593.58,592.93,0.29310832]
[1743899022526,1.383,593.58,592.94,0.29310832]
[1743899022827,1.383,593.58,592.95,0.29310832]
[1743899023033,1.383,593.58,592.96,0.29310832]
[1743899023231,1.383,593.58,592.93,0.29310832]
[1743899023531,1.383,593.58,592.94,0.29310832]
[1743899023732,1.383,593.58,592.95,0.29310832]
[1743899023932,1.383,593.58,592.96,1.25898521]
[1743899024132,1.383,593.58,592.97,0.29310832]
[1743899024328,1.383,593.58,592.98,0.29308096]
[1743899024533,1.383,593.58,592.97,0.29308096]
[1743899026234,1.383,593.58,592.98,0.293063]
[1743899026430,1.383,593.58,592.99,0.293063]
[1743899026735,1.383,593.58,593.0,0.293063]
[1743899026940,1.383,593.58,593.01,0.293063]
[1743899027140,1.383,593.58,592.97,0.293063]
[1743899027336,1.383,593.58,592.98,0.293063]
[1743899027534,1.383,593.58,592.99,0.293063]
[1743899027738,1.383,593.58,592.97,0.293063]
[1743899027937,1.383,593.58,592.98,0.293063]
[1743899028137,1.383,593.58,592.99,0.293063]
[1743899028339,1.383,593.58,592.97,0.293063]
[1743899028537,1.383,593.58,593.11,1.25898521]
[1743899028742,1.383,593.58,593.12,0.293063]
[1743899032742,1.383,593.58,593.11,1.25898521]
[1743899032943,1.383,593.58,593.12,0.29300615]
[1743899035439,1.383,593.58,592.93,0.29300615]
[1743899035643,1.383,593.58,592.94,0.29300615]
[1743899035844,1.383,593.58,592.93,0.29300615]
[1743899036139,1.383,593.58,592.92,1.25898521]
[1743899036344,1.383,593.58,592.93,0.29300989]
[1743899036941,1.383,593.58,592.92,0.29300989]
[1743899037839,1.383,593.58,592.91,1.55215387]
[1743899038040,1.383,593.58,592.92,0.29300064]
[1743899039446,1.383,593.58,592.91,1.55215387]
[1743899039641,1.383,593.58,592.93,0.29300557]
[1743899039842,1.383,593.58,592.94,0.29300557]
[1743899040046,1.383,593.58,592.92,0.29300557]
[1743899043849,1.383,593.58,593.02,1.25898521]
[1743899044149,1.383,593.58,593.03,0.29300557]
[1743899045952,1.383,593.58,593.07,1.25898521]
[1743899046148,1.383,593.58,593.08,0.29300557]
[1743899048051,1.383,593.58,593.1,1.25898521]
[1743899048250,1.383,593.58,593.11,0.29300557]
[1743899049151,1.383,593.58,593.1,1.25898521]
[1743899049350,1.383,593.58,593.11,0.29303935]
[1743899054153,1.383,593.58,593.12,1.25898521]
[1743899054355,1.383,593.58,593.13,0.29303935]
[1743899055957,1.383,593.58,593.13,1.55202456]
[1743899056157,1.383,593.58,593.13,1.25898521]
[1743899056353,1.383,593.58,593.14,0.2931165]
[1743899059459,1.383,593.58,593.13,1.25898521]
[1743899059659,1.383,593.58,593.15,0.29311642]
[1743899059855,1.383,593.58,593.14,0.29311642]
[1743899060059,1.383,593.58,593.15,0.29311642]
[1743899060261,1.383,593.58,593.14,0.29311642]
[1743899060460,1.383,593.58,593.1,0.29311642]
[1743899060763,1.383,593.58,593.11,0.29311642]
[1743899061060,1.383,593.58,593.12,0.29311642]
[1743899061261,1.383,593.58,593.1,0.29311642]
[1743899062262,1.383,593.58,593.11,1.25898521]
[1743899062466,1.383,593.58,593.12,0.29311642]
[1743899064559,1.383,593.58,593.13,1.25898521]
[1743899064761,1.383,593.58,593.14,0.29311642]
[1743899067169,1.383,593.58,593.15,1.25898521]
[1743899067565,1.383,593.58,593.16,0.29311642]
[1743899069466,1.383,593.58,593.18,1.25898521]
[1743899069766,1.383,593.58,593.19,0.29311642]
[1743899069965,0.2931415,594.05,593.19,0.29311642]
[1743899070369,1.51338115,594.35,593.18,1.25898521]
[1743899070566,0.33651338,594.33,593.19,0.29311301]
[1743899070763,0.30958991,594.32,593.19,0.29311301]
[1743899070963,0.3365247,594.31,593.19,0.29311301]
[1743899071167,0.30958991,594.3,593.19,0.29311301]
[1743899071367,0.33653603,594.29,593.19,0.29311301]
[1743899071666,0.30958598,594.28,593.2,0.29310245]
[1743899071866,0.33654736,594.27,593.19,0.29310245]
[1743899072067,0.30958598,594.26,593.2,0.29310245]
[1743899072266,0.33655868,594.25,593.19,0.29310245]
[1743899072466,0.30958598,594.24,593.2,0.29310245]
[1743899072662,0.33657001,594.23,593.19,0.29310245]
[1743899072966,0.30958598,594.22,593.2,0.29310245]
[1743899073266,0.64617431,594.21,593.21,0.29317247]
[1743899073466,0.64617997,594.2,593.19,0.29317247]
[1743899073661,0.64618564,594.19,593.19,0.29317247]
[1743899073864,0.6461913,594.18,593.19,0.29317247]
[1743899074063,0.64619697,594.17,593.19,0.29317247]
[1743899074266,0.64620263,594.16,593.19,0.29317247]
[1743899074570,0.6462083,594.15,593.19,0.29317247]
[1743899074767,0.64621396,594.14,593.19,0.29317247]
[1743899075065,0.30959297,594.13,593.19,0.29317247]
[1743899076564,0.33662099,594.14,593.18,1.25898521]
[1743899076766,0.29306621,594.12,593.19,0.29313033]
[1743899076971,0.30958664,594.11,593.19,0.29313033]
[1743899077167,0.29306621,594.12,593.19,0.29313033]
[1743899078173,0.29306621,594.12,593.18,1.25898521]
[1743899078369,0.29306621,594.12,593.19,0.29312965]
[1743899078575,0.30958978,594.11,593.19,0.29312965]
[1743899078773,0.29306621,594.12,593.19,0.29312965]
[1743899079073,0.30958947,594.11,593.19,0.29312965]
[1743899079574,0.30958947,594.13,593.19,0.29312965]
[1743899079774,0.29306621,594.1,593.19,0.29312965]
[1743899081676,0.29306621,594.1,593.18,1.25898521]
[1743899081875,0.29306621,594.1,593.19,0.29312989]
[1743899082277,0.33662099,594.14,593.19,0.29312989]
[1743899082575,0.30958566,594.13,593.19,0.29312989]
[1743899082775,0.29306374,594.09,593.19,0.29312989]
[1743899085372,0.33662099,594.14,593.19,0.29312989]
[1743899085578,0.3095859,594.13,593.19,0.29312989]
[1743899085878,0.60263977,594.13,593.19,0.29312989]
[1743899086071,0.3095859,594.12,593.19,0.29312989]
[1743899086778,0.3095859,594.12,593.19,1.5521151]
[1743899086978,0.3095859,594.12,593.2,0.29312989]
[1743899087975,0.29305387,594.13,593.2,0.29312989]
[1743899088278,0.33662099,594.14,593.2,0.29312989]
[1743899088479,0.33662099,594.14,593.19,1.25898521]
[1743899088679,0.29305016,594.12,593.2,0.29309181]
[1743899089279,0.29305016,594.12,593.2,1.55207702]
[1743899089474,0.29305016,594.12,593.21,0.29309181]
[1743899091280,0.33662099,594.14,593.21,0.29309181]
[1743899091576,0.29304893,594.12,593.21,0.29309181]
[1743899092880,0.30958992,594.11,593.21,0.29309181]
[1743899094275,0.30958992,594.11,593.16,1.25898521]
[1743899094276,0.30958992,594.11,593.22,0.29309181]
[1743899094479,0.29306127,594.1,593.17,0.29309181]
[1743899094678,0.29306127,594.1,593.16,1.25898521]
[1743899094679,0.29306127,594.1,593.18,0.29309181]
[1743899094877,0.29306127,594.1,593.17,0.29309181]
[1743899095076,0.29306127,594.1,593.18,0.29309181]
[1743899095281,0.29306127,594.1,593.17,0.29309181]
[1743899097283,0.33662099,594.14,593.17,0.29309181]
[1743899097585,0.3095917,594.13,593.17,0.29309181]
[1743899097785,0.29306374,594.09,593.17,0.29309181]
[1743899100085,0.29306374,594.09,593.16,1.25898521]
[1743899100285,0.33662099,594.14,593.17,0.29313992]
[1743899100483,0.33662099,594.14,593.18,0.29313993]
[1743899100484,0.3095914,594.13,593.18,0.29313993]
[1743899100685,0.29306374,594.08,593.17,0.29313993]
[1743899101787,0.29306374,594.08,593.16,1.25898521]
[1743899101986,0.29306374,594.08,593.17,0.29310643]
[1743899103287,0.33662099,594.14,593.17,0.29310643]
[1743899103487,0.30959155,594.13,593.17,0.29310643]
[1743899103687,0.29306867,594.07,593.17,0.29310643]
[1743899103881,0.33658134,594.21,593.17,0.29310643]
[1743899104085,0.30959125,594.2,593.17,0.29310643]
[1743899104288,0.33659267,594.19,593.17,0.29310643]
[1743899104485,0.30959125,594.18,593.17,0.29310643]
[1743899104787,0.336604,594.17,593.17,0.29310643]
[1743899104983,0.336604,594.17,593.16,1.25898521]
[1743899105185,0.30960207,594.16,593.17,0.29317764]
[1743899105487,0.33661533,594.15,593.17,0.29317764]
[1743899105685,0.30960207,594.14,593.17,0.29317764]
[1743899105882,0.33662666,594.13,593.17,0.29317764]
[1743899106086,0.30960207,594.12,593.17,0.29317764]
[1743899106287,0.33663799,594.11,593.17,0.29317764]
[1743899106486,0.30960207,594.1,593.17,0.29317764]
[1743899106687,0.33664932,594.09,593.17,0.29317764]
[1743899106888,0.33664932,594.09,592.87,2.86352274]
[1743899106889,0.33664932,594.09,593.12,1.25898521]
[1743899107190,0.33664932,594.09,593.13,0.29316959]
[1743899108785,0.33664932,594.09,593.05,0.29316959]
[1743899109689,0.29311187,594.08,593.05,0.29316959]
[1743899109890,0.33666066,594.07,593.05,0.29316959]
[1743899110189,0.33666066,594.07,593.04,1.25898521]
[1743899110389,0.33666066,594.07,593.05,0.29319757]
[1743899110995,0.33666066,594.07,593.06,0.29319757]
[1743899111290,0.33666066,594.07,593.07,0.29319757]
[1743899111495,0.33666066,594.07,592.99,0.29319757]
[1743899111994,0.33666066,594.07,592.98,1.25898521]
[1743899112195,0.33666066,594.07,592.99,0.29316296]
[1743899112695,0.29312298,594.06,592.99,0.29316296]
[1743899112895,0.33667199,594.05,592.99,0.29316296]
[1743899113692,0.33667199,594.05,593.0,0.29316408]
[1743899113996,0.33667199,594.05,593.01,0.29316408]
[1743899114196,0.33667199,594.05,592.99,0.29316408]
[1743899115692,0.29311557,594.04,592.99,0.29316408]
[1743899115996,0.29311557,594.04,592.97,0.29316408]
[1743899116292,0.29311557,594.04,592.98,0.29316408]
[1743899116596,0.29311557,594.04,592.99,0.29316408]
[1743899116896,0.29311557,594.04,593.0,0.29316408]
[1743899117096,0.29311557,594.04,592.96,1.25898521]
[1743899117293,0.29311557,594.04,592.97,0.29313881]
[1743899118097,0.29311557,594.04,592.98,1.25898521]
[1743899118296,0.33667199,594.05,592.99,0.29313881]
[1743899118797,0.29312175,594.03,592.99,0.29313881]
[1743899120699,0.29312175,594.03,592.93,0.29313881]
[1743899121300,0.33667199,594.05,592.93,0.29313881]
[1743899121798,0.29311311,594.04,592.93,0.29313881]
[1743899123695,0.29311311,594.04,592.92,0.29313881]
[1743899123894,0.29311311,594.04,592.91,1.59630453]
[1743899124198,0.29311311,594.04,592.92,0.29313237]
[1743899124498,0.33667199,594.05,592.92,0.29313237]
[1743899124693,0.29313286,594.03,592.92,0.29313237]
[1743899125895,0.29313286,594.03,592.97,1.25898521]
[1743899126199,0.29313286,594.03,592.98,0.29313237]
[1743899126392,0.29313286,594.03,592.99,0.29318869]
[1743899126594,0.29313286,594.03,592.98,0.29318869]
[1743899127294,0.951,594.04,592.98,0.29318869]
[1743899127498,0.951,594.04,592.97,1.25898521]
[1743899127700,0.29312668,594.02,592.98,0.29317863]
[1743899129899,0.29312668,594.02,593.12,1.25898521]
[1743899130099,0.647,594.01,593.13,0.29317863]
[1743899130799,0.29311187,594.0,593.13,0.29317863]
[1743899132401,0.29311187,594.0,593.03,0.29317863]
[1743899132596,0.29311187,594.0,593.02,1.25898521]
[1743899132801,0.29311187,594.0,593.04,0.293193]
[1743899133001,0.29311187,594.0,593.05,0.293193]
[1743899133201,0.29311187,594.0,593.02,1.25898521]
[1743899133202,0.29311187,594.0,593.03,0.293193]
[1743899133503,0.647,594.01,593.03,0.293193]
[1743899133804,0.29312422,593.99,593.03,0.293193]
[1743899134199,0.29312422,593.99,593.03,1.55217821]
[1743899134398,0.29312422,593.99,593.04,0.293193]
[1743899135803,0.29312422,593.99,593.03,1.25898521]
[1743899135996,0.29312422,593.99,593.04,0.29318535]
[1743899136303,0.647,594.01,593.04,0.29318535]
[1743899136505,0.647,594.01,593.03,1.25898521]
[1743899136700,0.647,594.01,593.04,0.29316094]
[1743899137005,0.29312298,594.0,593.03,1.25898521]
[1743899137204,0.29312298,594.0,593.04,0.29316177]
[1743899137604,0.29312298,594.0,593.03,1.25898521]
[1743899137806,0.29312298,594.0,593.04,0.29315997]
[1743899138704,0.29312298,594.0,592.92,0.29315997]
[1743899138905,0.29312298,594.0,592.93,0.29315997]
[1743899139105,0.29312298,594.0,592.92,0.29315997]
[1743899139405,0.647,594.01,592.92,0.29315997]
[1743899139805,0.2931378,593.99,592.92,0.29315997]
[1743899140805,0.2931378,593.99,592.91,0.33731932]
[1743899141004,0.2931378,593.99,592.92,0.29318119]
[1743899142301,0.647,594.01,592.92,0.29318119]
[1743899142606,0.2931378,593.98,592.92,0.29318119]
[1743899144303,0.2931378,593.98,592.91,0.33731932]
[1743899144502,0.2931378,593.98,592.92,0.2931908]
[1743899145308,0.647,594.01,592.92,0.2931908]
[1743899145804,0.2931378,594.0,592.92,0.2931908]
[1743899146709,0.2931378,594.0,592.91,0.33731932]
[1743899146910,0.2931378,594.0,592.93,0.29318015]
[1743899147103,0.2931378,594.0,592.92,0.29318015]
[1743899147309,0.2931378,594.0,592.93,0.29318015]
[1743899147510,0.2931378,594.0,592.92,0.29318015]
[1743899147807,0.2931378,594.0,592.91,0.33731932]
[1743899148008,0.2931378,594.0,592.92,0.29313598]
[1743899148211,0.647,594.01,592.92,0.29313598]
[1743899148812,0.647,594.01,593.07,1.25898521]
[1743899149010,0.647,594.01,593.08,0.29313598]
[1743899151114,0.647,594.01,593.07,1.25898521]
[1743899151316,0.647,594.01,593.08,0.29313139]
[1743899151516,0.647,594.01,593.04,0.29313139]
[1743899153518,0.647,594.01,593.05,1.25898521]
[1743899153718,0.647,594.01,593.06,0.29313139]
[1743899158218,0.951,594.04,593.06,0.29313139]
[1743899160321,0.951,594.04,593.05,1.25898521]
[1743899160822,0.824,594.03,593.05,1.25898521]
[1743899161318,0.824,594.03,593.08,1.25898521]
[1743899162721,0.824,594.03,593.09,0.29311273]
[1743899164121,0.824,594.03,593.09,1.55209794]
[1743899164323,0.824,594.03,593.1,0.29311273]
[1743899164824,0.824,594.03,593.09,1.25898521]
[1743899165023,0.824,594.03,593.1,0.2930208]
[1743899166523,0.824,594.03,593.03,0.2930208]
[1743899166724,0.824,594.03,593.04,0.2930208]
[1743899166923,0.824,594.03,593.05,0.33723969]
[1743899167121,0.824,594.03,593.06,0.2930208]
[1743899168923,0.824,594.03,593.07,0.29297828]
[1743899169124,0.824,594.03,593.06,0.29297828]
[1743899169423,0.824,594.03,593.07,0.29297828]
[1743899169621,0.824,594.03,593.06,0.29297828]
[1743899169924,0.824,594.03,593.05,0.33723969]
[1743899170123,0.824,594.03,593.06,0.29298667]
[1743899172725,0.951,594.04,593.06,0.29298667]
[1743899173121,0.951,594.04,593.05,0.33723969]
[1743899173328,0.951,594.04,593.06,0.29292994]
[1743899175832,0.726,594.03,593.06,0.29292994]
[1743899176638,0.726,594.03,593.05,0.63029973]
[1743899176839,0.726,594.03,593.06,0.29290595]
[1743899181546,0.701,594.02,593.06,0.29290595]
[1743899187750,0.701,594.02,593.08,1.25898521]
[1743899187945,0.701,594.02,593.09,0.29290595]
[1743899190551,0.701,594.02,593.17,1.25898521]
[1743899190851,0.701,594.02,593.18,0.29290595]
[1743899192952,0.701,594.02,593.19,1.25898521]
[1743899193146,0.701,594.02,593.2,0.29290595]
[1743899193650,0.701,594.02,593.19,1.25898521]
[1743899193851,0.701,594.02,593.2,0.29292384]
[1743899195652,0.701,594.02,593.11,0.29292384]
[1743899195951,0.701,594.02,593.12,0.29292384]
[1743899196152,0.701,594.02,593.11,0.29292384]
[1743899196354,0.826,594.01,593.12,0.29292384]
[1743899196557,0.826,594.01,593.11,0.29292384]
[1743899196754,0.826,594.01,593.12,0.29292384]
[1743899196955,0.826,594.01,593.11,0.29292384]
[1743899197156,0.826,594.01,593.1,0.29304523]
[1743899197455,0.826,594.01,593.11,0.29293957]
[1743899199557,0.826,594.01,593.12,0.29293763]
[1743899199756,0.826,594.01,593.1,0.58599643]
[1743899199960,0.826,594.01,593.11,0.29293763]
[1743899202165,0.826,594.01,593.1,1.55204401]
[1743899202365,0.826,594.01,593.13,1.25898521]
[1743899202565,0.826,594.01,593.14,0.29293991]
[1743899204966,0.826,594.01,593.23,1.25898521]
[1743899205166,0.826,594.01,593.24,0.29293991]
[1743899207267,0.826,594.01,593.23,1.25898521]
[1743899207461,0.826,594.01,593.24,0.29300346]
[1743899208062,0.826,594.01,593.2,0.29300346]
[1743899208266,0.826,594.01,593.21,0.29300346]
[1743899208569,0.826,594.01,593.2,0.29300346]
[1743899208769,0.826,594.01,593.21,0.29300346]
[1743899208968,0.826,594.01,593.19,1.25898521]
[1743899209164,0.826,594.01,593.22,0.29298825]
[1743899209469,0.826,594.01,593.23,0.29298825]
[1743899209668,0.826,594.01,593.2,0.29298825]
[1743899209869,0.826,594.01,593.24,0.29298825]
[1743899210063,0.826,594.01,593.25,0.29298825]
[1743899210265,0.826,594.01,593.2,0.29298825]
[1743899210469,0.826,594.01,593.21,0.29298825]
[1743899210670,0.826,594.01,593.2,0.29298825]
[1743899210869,0.826,594.01,593.21,0.29299278]
[1743899211071,0.826,594.01,593.2,1.55197799]
[1743899211265,0.826,594.01,593.21,0.29299278]
[1743899212367,0.826,594.01,593.2,1.25898521]
[1743899212573,0.826,594.01,593.21,0.29306299]
[1743899213673,0.826,594.01,593.12,0.29315994]
[1743899214074,0.826,594.01,593.11,1.25898521]
[1743899214373,0.826,594.01,593.12,0.29316446]
[1743899214872,0.2931057,594.0,593.12,0.29316446]
[1743899215567,0.2931057,594.0,593.13,0.29316446]
[1743899215770,0.2931057,594.0,593.06,0.29316446]
[1743899215968,0.2931057,594.0,593.14,0.29316446]
[1743899216269,0.2931057,594.0,593.15,0.29316446]
[1743899216469,0.2931057,594.0,593.06,0.29316446]
[1743899216669,0.2931057,594.0,593.05,0.33723969]
[1743899216868,0.2931057,594.0,593.06,0.29327852]